Workbook

Sheet Wksh 1 - Market Experience
A1: Press TAB and directional arrow keys to read through the document. If macros are disabled, press and hold the ALT key and press the F, then I, and then N key. After that, select the Enable All Content option by pressing enter. (note that you can also press the C key to select "Enable All Content") Instructions can be found in cells K1 through K4. If screen reader fails to announce a cell after performing a dropdown selection, please press F2 and then ESC to force the screen reader to resume. | B1: Unified Rate Review v6.1 [assistive technology users, please reference cell A1 for instructions] | K1: To add a product to Worksheet 2 - Plan Product Info, select the Add Product button or Ctrl + Shift + P.
K2: To add a plan to Worksheet 2 - Plan Product Info, select the Add Plan button or Ctrl + Shift + L.
B3: Company Legal Name: | C3: CareSource Kentucky Co. | K3: To validate, select the Validate button or Ctrl + Shift + I.
B4: HIOS Issuer ID: | C4: 45636 | D4: State: | E4: KY | K4: To finalize, select the Finalize button or Ctrl + Shift + F.
B5: Effective Date of Rate Change(s): | C5: =MAX('Wksh 2 - Plan Product Info'!E19:AC19) -> 00:00:00 | D5: Market: | E5: Individual
B8: Market Level Calculations (Same for all Plans)
B11: Section I: Experience Period Data
B12: Experience Period: | D12: 2023-01-01 | E12: to | F12: =EDATE(D12,12)-1 -> 12/31/2023
E13: Total | F13: PMPM
B14: Allowed Claims | E14: 203445016.8 | F14: =E14/E19 -> 638.1348
B15: Reinsurance | E15: 0 | F15: =E15/E19 -> 0
B16: Incurred Claims in Experience Period | E16: 163890551.5 | F16: =E16/E19 -> 514.0664
B17: Risk Adjustment | E17: -637244.29 | F17: =E17/E19 -> -1.9988
B18: Experience Period Premium | E18: 189529547.9 | F18: =E18/E19 -> 594.4869
B19: Experience Period Member Months | E19: ='Wksh 2 - Plan Product Info'!D33 -> 318812
B21: Section II: Projections
D22: Year 1 Trend | F22: Year 2 Trend
B23: Benefit Category | C23: Experience Period Index Rate PMPM | D23: Cost | E23: Utilization | F23: Cost | G23: Utilization | H23: Trended EHB Allowed Claims PMPM
B24: Inpatient Hospital | C24: 77.68479306 | D24: 1.017001443 | E24: 1.005 | F24: 1.017001443 | G24: 1.005 | H24: =PRODUCT(C24:G24) -> 81.1543
B25: Outpatient Hospital | C25: 104.6621764 | D25: 1.057769112 | E25: 1.004639249 | F25: 1.057769112 | G25: 1.004639249 | H25: 118.193
B26: Professional | C26: 185.8378987 | D26: 1.00024385 | E26: 1 | F26: 1.00024385 | G26: 1 | H26: 185.9285
B27: Other Medical | C27: 21.05171887 | D27: 1.057769112 | E27: 1.004639249 | F27: 1.057769112 | G27: 1.004639249 | H27: 23.7733
B28: Capitation | C28: 0 | D28: 1 | E28: 1 | F28: 1 | G28: 1 | H28: 0
B29: Prescription Drug | C29: 245.8033196 | D29: 1.109375428 | E29: 1.024125109 | F29: 1.109375428 | G29: 1.024125109 | H29: 317.286
B30: Total | C30: =SUM(C24:C29) -> 635.0399 | H30: =SUM(H24:H29) -> 726.3351
B32: Morbidity Adjustment | F32: 1.007382195
B33: Demographic Shift | F33: 1.006848542
B34: Plan Design Changes | F34: 0.9916485087
B35: Other | F35: 0.9996480207
B36: Adjusted Trended EHB Allowed Claims PMPM for | D36: =IF(C5<>"",C5,"") -> 1/1/2025 | F36: =H30*PRODUCT(F32:F35) -> 730.2983
B38: Manual EHB Allowed Claims PMPM | F38: 0
B39: Applied Credibility % | F39: 1
G41: Projected Period Totals
B42: Projected Index Rate for | D42: =IF(C5<>"",C5,"") -> 1/1/2025 | F42: =ROUND(F39*F36+(1-F39)*F38,2) -> 730.3 | G42: =F42*F48 -> 96820252.8
B43: Reinsurance | F43: 0 | G43: =F43*F48 -> 0
B44: Risk Adjustment Payment/Charge | F44: -11.65288728 | G44: =F44*F48 -> -1544893.184
B45: Exchange User Fees | F45: 0 | G45: =F45*F46*F48 -> 0
B46: Market Adjusted Index Rate | F46: =(F42-F43-F44)/(1-F45) -> 741.9529 | G46: =F46*F48 -> 98365145.98
B48: Projected Member Months | F48: ='Wksh 2 - Plan Product Info'!D73 -> 132576
B50: Information Not Releasable to the Public Unless Authorized by Law: This information has not been publically disclosed and may be privileged and confidential. It is for internal government use only and must not be disseminated, distributed, or copied to persons not authorized to receive the information. Unauthorized disclosure may result in prosecution to the full extent of the law.

Sheet Wksh 2 - Plan Product Info
A1: Press TAB and directional arrow keys to read through the document. If macros are disabled, press and hold the ALT key and press the F, then I, and then N key. After that, select the Enable All Content option by pressing enter. (note that you can also press the C key to select "Enable All Content") Instructions can be found in cells P1 through P6. If screen reader fails to announce a cell after performing a dropdown selection, please press F2 and then ESC to force the screen reader to resume. | C1: Product-Plan Data Collection [assistive technology users, please reference cell A1 for instructions] | P1: To add a product to Worksheet 2 - Plan Product Info, select the Add Product button or Ctrl + Shift + P.
P2: To add a plan to Worksheet 2 - Plan Product Info, select the Add Plan button or Ctrl + Shift + L.
C3: Company Legal Name: | D3: =IF('Wksh 1 - Market Experience'!C3<>"", 'Wksh 1 - Market Experience'!C3,"") ->  | P3: To validate, select the Validate button or Ctrl + Shift + I.
C4: HIOS Issuer ID: | D4: =IF('Wksh 1 - Market Experience'!C4<>"", 'Wksh 1 - Market Experience'!C4,"") ->  | E4: State: | F4: =IF('Wksh 1 - Market Experience'!E4<>"",'Wksh 1 - Market Experience'!E4,"") ->  | P4: To finalize, select the Finalize button or Ctrl + Shift + F.
C5: Effective Date of Rate Change(s): | D5: =IF('Wksh 1 - Market Experience'!C5<>"", 'Wksh 1 - Market Experience'!C5,"") -> 00:00:00 | E5: Market: | F5: =IF('Wksh 1 - Market Experience'!E5<>"",'Wksh 1 - Market Experience'!E5,"") ->  | P5: To remove a product, navigate to the corresponding Product Name/Product ID field and select the Remove Product button or Ctrl + Shift + Q.
P6: To remove a plan, navigate to the corresponding Plan Name/Plan ID field and select the Remove Plan button or Ctrl + Shift + A.
C7: Product/Plan Level Calculations
B9: Field # | C9: Section I: General Product and Plan Information
B10: 1.1 | C10: Product Name | E10: CareSource Marketplace | S10: CareSource Marketplace Adult Vision & Fitness
B11: 1.2 | C11: Product ID | E11: 45636KY001 | S11: 45636KY002
B12: 1.3 | C12: Plan Name | E12: CareSource Marketplace Catastrophic Core | F12: CareSource Marketplace Bronze HSA Eligible | G12: Low Premium Silver 6000 $3 Generic Drugs | H12: Bronze First 7500 $25 Generic Drugs | I12: Core Gold 1500 $10 Generic Drugs | J12: Core Silver 5000 $3 Generic Drugs | K12: CareSource Marketplace Bronze | L12: Diabetes Silver 4000 $0 Select Drugs & Specialized Services | M12: Diabetes Gold 1100 $0 Select Drugs & Specialized Services | N12: Silver 5000 $20 Generic Drugs | O12: Gold 1500 $15 Generic Drugs | P12: Healthy Heart Gold 1500 $0 Select Drugs & Specialized Services | Q12: Healthy Heart Silver 4500 $0 Select Drugs & Specialized Services | R12: HDHP Preventive Silver 5500 $0 Select Drugs | S12: CareSource Marketplace Low Premium Silver Dental, Vision, & Fitness | T12: CareSource Marketplace Core Gold Dental, Vision, & Fitness | U12: CareSource Marketplace Core Silver Dental, Vision, & Fitness | V12: Bronze First 7500 $25 Generic Drugs Adult Vision & Fitness | W12: CareSource Marketplace Bronze Dental, Vision, & Fitness | X12: Diabetes Silver 4000 $0 Select Drugs & Specialized Services Adult Vision & Fitness | Y12: Diabetes Gold 1100 $0 Select Drugs & Specialized Services Adult Vision & Fitness | Z12: Silver 5000 $20 Generic Drugs Adult Vision & Fitness | AA12: Gold 1500 $15 Generic Drugs Adult Vision & Fitness | AB12: Healthy Heart Gold 1500 $0 Select Drugs & Specialized Services Adult Vision & Fitness | AC12: Healthy Heart Silver 4500 $0 Select Drugs & Specialized Services Adult Vision & Fitness
B13: 1.4 | C13: Plan ID (Standard Component ID) | E13: 45636KY0010010 | F13: 45636KY0010013 | G13: 45636KY0010014 | H13: 45636KY0010017 | I13: 45636KY0010029 | J13: 45636KY0010030 | K13: 45636KY0010032 | L13: 45636KY0010034 | M13: 45636KY0010035 | N13: 45636KY0010037 | O13: 45636KY0010038 | P13: 45636KY0010040 | Q13: 45636KY0010041 | R13: 45636KY0010042 | S13: 45636KY0020014 | T13: 45636KY0020015 | U13: 45636KY0020016 | V13: 45636KY0020017 | W13: 45636KY0020032 | X13: 45636KY0020034 | Y13: 45636KY0020035 | Z13: 45636KY0020037 | AA13: 45636KY0020038 | AB13: 45636KY0020040 | AC13: 45636KY0020041
B14: 1.5 | C14: Metal | E14: Catastrophic | F14: Bronze | G14: Silver | H14: Bronze | I14: Gold | J14: Silver | K14: Bronze | L14: Silver | M14: Gold | N14: Silver | O14: Gold | P14: Gold | Q14: Silver | R14: Silver | S14: Silver | T14: Gold | U14: Silver | V14: Bronze | W14: Bronze | X14: Silver | Y14: Gold | Z14: Silver | AA14: Gold | AB14: Gold | AC14: Silver
B15: 1.6 | C15: AV Metal Value | E15: 0.625 | F15: 0.643 | G15: 0.7004 | H15: 0.6381 | I15: 0.7881 | J15: 0.7139 | K15: 0.599 | L15: 0.7195 | M15: 0.8196 | N15: 0.7001 | O15: 0.7806 | P15: 0.8198 | Q15: 0.7164 | R15: 0.7018 | S15: 0.7153 | T15: 0.7852 | U15: 0.7181 | V15: 0.6381 | W15: 0.599 | X15: 0.7195 | Y15: 0.8196 | Z15: 0.7001 | AA15: 0.7806 | AB15: 0.8198 | AC15: 0.7164
B16: 1.7 | C16: Plan Category | E16: Terminated | F16: Terminated | G16: Renewing | H16: Renewing | I16: Renewing | J16: Renewing | K16: Terminated | L16: Renewing | M16: Renewing | N16: Renewing | O16: Renewing | P16: New | Q16: New | R16: New | S16: Terminated | T16: Terminated | U16: Terminated | V16: Renewing | W16: Terminated | X16: Renewing | Y16: Renewing | Z16: Renewing | AA16: Renewing | AB16: New | AC16: New
B17: 1.8 | C17: Plan Type | E17: HMO | F17: HMO | G17: HMO | H17: HMO | I17: HMO | J17: HMO | K17: HMO | L17: HMO | M17: HMO | N17: HMO | O17: HMO | P17: HMO | Q17: HMO | R17: HMO | S17: HMO | T17: HMO | U17: HMO | V17: HMO | W17: HMO | X17: HMO | Y17: HMO | Z17: HMO | AA17: HMO | AB17: HMO | AC17: HMO
B18: 1.9 | C18: Exchange Plan? | E18: No | F18: No | G18: Yes | H18: Yes | I18: Yes | J18: Yes | K18: No | L18: Yes | M18: Yes | N18: Yes | O18: Yes | P18: Yes | Q18: Yes | R18: Yes | S18: No | T18: No | U18: No | V18: Yes | W18: No | X18: Yes | Y18: Yes | Z18: Yes | AA18: Yes | AB18: Yes | AC18: Yes
B19: 1.10 | C19: Effective Date of Proposed Rates | E19: 2025-01-01 | F19: 2025-01-01 | G19: 2025-01-01 | H19: 2025-01-01 | I19: 2025-01-01 | J19: 2025-01-01 | K19: 2025-01-01 | L19: 2025-01-01 | M19: 2025-01-01 | N19: 2025-01-01 | O19: 2025-01-01 | P19: 2025-01-01 | Q19: 2025-01-01 | R19: 2025-01-01 | S19: 2025-01-01 | T19: 2025-01-01 | U19: 2025-01-01 | V19: 2025-01-01 | W19: 2025-01-01 | X19: 2025-01-01 | Y19: 2025-01-01 | Z19: 2025-01-01 | AA19: 2025-01-01 | AB19: 2025-01-01 | AC19: 2025-01-01
B20: 1.11 | C20: Cumulative Rate Change % (over 12 mos prior) | E20: 0 | F20: 0 | G20: 0.1009636995 | H20: 0.1384274748 | I20: 0.1269885477 | J20: 0.1237783865 | K20: 0 | L20: 0.1251212719 | M20: 0.1081975017 | N20: 0.1372502964 | O20: 0.115621627 | P20: 0 | Q20: 0 | R20: 0 | S20: 0 | T20: 0 | U20: 0 | V20: 0.1303174794 | W20: 0 | X20: 0.1180814783 | Y20: 0.09944883783 | Z20: 0.1233420126 | AA20: 0.1006242166 | AB20: 0 | AC20: 0
B21: 1.12 | C21: Product Rate Increase % | E21: =IF(SUMPRODUCT((E16:R16="Renewing")*((E14:R14="Platinum")+(E14:R14="Gold")+(E14:R14="Silver")+(E14:R14="Bronze")+(E14:R14="Catastrophic")))=0, 0, ROUND(ROUND(SUMPRODUCT(1+E20:R20,E34:R34,E35:R35,--(E16:R16="Renewing")*((E14:R14="Platinum")+(E14:R14="Gold")+(E14:R14="Silver")+(E14:R14="Bronze")+(E14:R14="Catastrophic")))/SUMPRODUCT(E34:R34,E35:R35,--(E16:R16="Renewing")*((E14:R14="Platinum")+(E14:R14="Gold")+(E14:R14="Silver")+(E14:R14="Bronze")+(E14:R14="Catastrophic"))), 4)-1, 4)) -> 0 | S21: =IF(SUMPRODUCT((S16:AC16="Renewing")*((S14:AC14="Platinum")+(S14:AC14="Gold")+(S14:AC14="Silver")+(S14:AC14="Bronze")+(S14:AC14="Catastrophic")))=0, 0, ROUND(ROUND(SUMPRODUCT(1+S20:AC20,S34:AC34,S35:AC35,--(S16:AC16="Renewing")*((S14:AC14="Platinum")+(S14:AC14="Gold")+(S14:AC14="Silver")+(S14:AC14="Bronze")+(S14:AC14="Catastrophic")))/SUMPRODUCT(S34:AC34,S35:AC35,--(S16:AC16="Renewing")*((S14:AC14="Platinum")+(S14:AC14="Gold")+(S14:AC14="Silver")+(S14:AC14="Bronze")+(S14:AC14="Catastrophic"))), 4)-1, 4)) -> 0
B22: 1.13 | C22: Submission Level Rate Increase % | E22: =IF(SUMPRODUCT((E16:AC16="Renewing")*((E14:AC14="Platinum")+(E14:AC14="Gold")+(E14:AC14="Silver")+(E14:AC14="Bronze")+(E14:AC14="Catastrophic")))=0, 0, ROUND(ROUND(SUMPRODUCT(1+E20:AC20,E34:AC34,E35:AC35,--(E16:AC16="Renewing")*((E14:AC14="Platinum")+(E14:AC14="Gold")+(E14:AC14="Silver")+(E14:AC14="Bronze")+(E14:AC14="Catastrophic")))/SUMPRODUCT(E34:AC34,E35:AC35,--(E16:AC16="Renewing")*((E14:AC14="Platinum")+(E14:AC14="Gold")+(E14:AC14="Silver")+(E14:AC14="Bronze")+(E14:AC14="Catastrophic"))), 4)-1, 4)) -> 0
A24: Worksheet 1 Totals | C24: Section II: Experience Period and Current Plan Level Information
B25: 2.1 | C25: Plan ID (Standard Component ID) | D25: Total | E25: =E13 -> 0 | F25: 0 | G25: 0 | H25: 0 | I25: 0 | J25: 0 | K25: 0 | L25: 0 | M25: 0 | N25: 0 | O25: 0 | P25: 0 | Q25: 0 | R25: 0 | S25: 0 | T25: 0 | U25: 0 | V25: 0 | W25: 0 | X25: 0 | Y25: 0 | Z25: 0 | AA25: 0 | AB25: 0 | AC25: 0
A26: ='Wksh 1 - Market Experience'!E14 -> 0 | B26: 2.2 | C26: Allowed Claims | D26: =SUM(E26:XFD26) -> 203445016.8 | E26: =63105.8122230991 -> 0 | F26: =8147651.98243027 -> 0 | G26: =34744432.878855 -> 0 | H26: =50223766.2524692 -> 0 | I26: =42741025.3304745 -> 0 | J26: =11054202.9722946 -> 0 | K26: =1974340.55316415 -> 0 | L26: =0 -> 0 | M26: =0 -> 0 | N26: =0 -> 0 | O26: =0 -> 0 | P26: =0 -> 0 | Q26: =0 -> 0 | R26: =0 -> 0 | S26: =14572021.8492184 -> 0 | T26: =12688518.3503207 -> 0 | U26: =7462438.05478469 -> 0 | V26: =17719546.4481552 -> 0 | W26: =2053966.34877788 -> 0 | X26: =0 -> 0 | Y26: =0 -> 0 | Z26: =0 -> 0 | AA26: =0 -> 0 | AB26: =0 -> 0 | AC26: =0 -> 0
A27: ='Wksh 1 - Market Experience'!E15 -> 0 | B27: 2.3 | C27: Reinsurance | D27: =SUM(E27:XFD27) -> 0 | E27: =0 -> 0 | F27: =0 -> 0 | G27: =0 -> 0 | H27: =0 -> 0 | I27: =0 -> 0 | J27: =0 -> 0 | K27: =0 -> 0 | L27: =0 -> 0 | M27: =0 -> 0 | N27: =0 -> 0 | O27: =0 -> 0 | P27: =0 -> 0 | Q27: =0 -> 0 | R27: =0 -> 0 | S27: =0 -> 0 | T27: =0 -> 0 | U27: =0 -> 0 | V27: =0 -> 0 | W27: =0 -> 0 | X27: =0 -> 0 | Y27: =0 -> 0 | Z27: =0 -> 0 | AA27: =0 -> 0 | AB27: =0 -> 0 | AC27: =0 -> 0
B28: 2.4 | C28: Member Cost Sharing | D28: =SUM(E28:XFD28) -> 39554465.31 | E28: =37794.9678750429 -> 0 | F28: =1995043.38310395 -> 0 | G28: =4978308.437934 -> 0 | H28: =14319448.4474664 -> 0 | I28: =5041243.52318941 -> 0 | J28: =1529933.2511037 -> 0 | K28: =680781.497704194 -> 0 | L28: =0 -> 0 | M28: =0 -> 0 | N28: =0 -> 0 | O28: =0 -> 0 | P28: =0 -> 0 | Q28: =0 -> 0 | R28: =0 -> 0 | S28: =2112336.49666236 -> 0 | T28: =2060712.72554517 -> 0 | U28: =1057121.85074198 -> 0 | V28: =5251197.00228747 -> 0 | W28: =490543.728452622 -> 0 | X28: =0 -> 0 | Y28: =0 -> 0 | Z28: =0 -> 0 | AA28: =0 -> 0 | AB28: =0 -> 0 | AC28: =0 -> 0
B29: 2.5 | C29: Cost Sharing Reduction | D29: =SUM(E29:XFD29) -> 0 | E29: =0 -> 0 | F29: =0 -> 0 | G29: =0 -> 0 | H29: =0 -> 0 | I29: =0 -> 0 | J29: =0 -> 0 | K29: =0 -> 0 | L29: =0 -> 0 | M29: =0 -> 0 | N29: =0 -> 0 | O29: =0 -> 0 | P29: =0 -> 0 | Q29: =0 -> 0 | R29: =0 -> 0 | S29: =0 -> 0 | T29: =0 -> 0 | U29: =0 -> 0 | V29: =0 -> 0 | W29: =0 -> 0 | X29: =0 -> 0 | Y29: =0 -> 0 | Z29: =0 -> 0 | AA29: =0 -> 0 | AB29: =0 -> 0 | AC29: =0 -> 0
A30: ='Wksh 1 - Market Experience'!E16 -> 0 | B30: 2.6 | C30: Incurred Claims | D30: =D26-D27-D28-D29 -> 163890551.5 | E30: 0 | F30: 0 | G30: 0 | H30: 0 | I30: 0 | J30: 0 | K30: 0 | L30: 0 | M30: 0 | N30: 0 | O30: 0 | P30: 0 | Q30: 0 | R30: 0 | S30: 0 | T30: 0 | U30: 0 | V30: 0 | W30: 0 | X30: 0 | Y30: 0 | Z30: 0 | AA30: 0 | AB30: 0 | AC30: 0
A31: ='Wksh 1 - Market Experience'!E17 -> 0 | B31: 2.7 | C31: Risk Adjustment Transfer Amount | D31: =SUM(E31:XFD31) -> -637244.29 | E31: =11274.35 -> 0 | F31: =-1323590.6 -> 0 | G31: =-804454.18 -> 0 | H31: =-18143414.39 -> 0 | I31: =22662632.97 -> 0 | J31: =3217790.73 -> 0 | K31: =-726993.94 -> 0 | L31: =0 -> 0 | M31: =0 -> 0 | N31: =0 -> 0 | O31: =0 -> 0 | P31: =0 -> 0 | Q31: =0 -> 0 | R31: =0 -> 0 | S31: =-625264.41 -> 0 | T31: =1727944.21 -> 0 | U31: =459861.22 -> 0 | V31: =-7252082.73 -> 0 | W31: =159052.48 -> 0 | X31: =0 -> 0 | Y31: =0 -> 0 | Z31: =0 -> 0 | AA31: =0 -> 0 | AB31: =0 -> 0 | AC31: =0 -> 0
A32: ='Wksh 1 - Market Experience'!E18 -> 0 | B32: 2.8 | C32: Premium | D32: =SUM(E32:XFD32) -> 189529547.9 | E32: =112959.817376344 -> 0 | F32: =7503017.60821733 -> 0 | G32: =36324125.6446474 -> 0 | H32: =60956831.2265152 -> 0 | I32: =20471348.7265268 -> 0 | J32: =8349144.12512977 -> 0 | K32: =2090394.45649385 -> 0 | L32: =0 -> 0 | M32: =0 -> 0 | N32: =0 -> 0 | O32: =0 -> 0 | P32: =0 -> 0 | Q32: =0 -> 0 | R32: =0 -> 0 | S32: =15049665.0166197 -> 0 | T32: =9317374.8771943 -> 0 | U32: =6228142.1703433 -> 0 | V32: =21576725.2955591 -> 0 | W32: =1549818.89375268 -> 0 | X32: =0 -> 0 | Y32: =0 -> 0 | Z32: =0 -> 0 | AA32: =0 -> 0 | AB32: =0 -> 0 | AC32: =0 -> 0
A33: ='Wksh 1 - Market Experience'!E19 -> 0 | B33: 2.9 | C33: Experience Period Member Months | D33: =SUM(E33:XFD33) -> 318812 | E33: =513 -> 0 | F33: =13655 -> 0 | G33: =46724 -> 0 | H33: =119782 -> 0 | I33: =27335 -> 0 | J33: =11691 -> 0 | K33: =4324 -> 0 | L33: =0 -> 0 | M33: =0 -> 0 | N33: =0 -> 0 | O33: =0 -> 0 | P33: =0 -> 0 | Q33: =0 -> 0 | R33: =0 -> 0 | S33: =21941 -> 0 | T33: =14157 -> 0 | U33: =9628 -> 0 | V33: =45802 -> 0 | W33: =3260 -> 0 | X33: =0 -> 0 | Y33: =0 -> 0 | Z33: =0 -> 0 | AA33: =0 -> 0 | AB33: =0 -> 0 | AC33: =0 -> 0
B34: 2.10 | C34: Current Enrollment | D34: =SUM(E34:XFD34) -> 22460 | E34: =0 -> 0 | F34: =0 -> 0 | G34: =3067 -> 0 | H34: =8358 -> 0 | I34: =1925 -> 0 | J34: =840 -> 0 | K34: =0 -> 0 | L34: =138 -> 0 | M34: =42 -> 0 | N34: =726 -> 0 | O34: =106 -> 0 | P34: =0 -> 0 | Q34: =0 -> 0 | R34: =0 -> 0 | S34: =1663 -> 0 | T34: =971 -> 0 | U34: =773 -> 0 | V34: =3152 -> 0 | W34: =0 -> 0 | X34: =155 -> 0 | Y34: =42 -> 0 | Z34: =469 -> 0 | AA34: =33 -> 0 | AB34: =0 -> 0 | AC34: =0 -> 0
B35: 2.11 | C35: Current Premium PMPM | D35: =SUMPRODUCT(E35:XFD35,E34:XFD34)/D34 -> 673.9505 | E35: =0 -> 0 | F35: =0 -> 0 | G35: =817.723694163676 -> 0 | H35: =596.872120124432 -> 0 | I35: =817.091901298701 -> 0 | J35: =758.725214285714 -> 0 | K35: =0 -> 0 | L35: =827.15463768116 -> 0 | M35: =757.025714285714 -> 0 | N35: =730.175812672177 -> 0 | O35: =803.722547169811 -> 0 | P35: =0 -> 0 | Q35: =0 -> 0 | R35: =0 -> 0 | S35: =732.60328322309 -> 0 | T35: =727.364263645725 -> 0 | U35: =681.280413971539 -> 0 | V35: =553.341361040609 -> 0 | W35: =0 -> 0 | X35: =739.035548387097 -> 0 | Y35: =750.315476190476 -> 0 | Z35: =643.029552238806 -> 0 | AA35: =783.032727272727 -> 0 | AB35: =0 -> 0 | AC35: =0 -> 0
B36: 2.12 | C36: Loss Ratio | D36: =D30/(D31+D32) -> 0.867640176 | E36: 0 | F36: 0 | G36: 0 | H36: 0 | I36: 0 | J36: 0 | K36: 0 | L36: 0 | M36: 0 | N36: 0 | O36: 0 | P36: 0 | Q36: 0 | R36: 0 | S36: 0 | T36: 0 | U36: 0 | V36: 0 | W36: 0 | X36: 0 | Y36: 0 | Z36: 0 | AA36: 0 | AB36: 0 | AC36: 0
C37: Per Member Per Month
B38: 2.13 | C38: Allowed Claims | D38: =D26/D33 -> 638.1348 | E38: 0 | F38: 0 | G38: 0 | H38: 0 | I38: 0 | J38: 0 | K38: 0 | L38: 0 | M38: 0 | N38: 0 | O38: 0 | P38: 0 | Q38: 0 | R38: 0 | S38: 0 | T38: 0 | U38: 0 | V38: 0 | W38: 0 | X38: 0 | Y38: 0 | Z38: 0 | AA38: 0 | AB38: 0 | AC38: 0
B39: 2.14 | C39: Reinsurance | D39: =D27/D33 -> 0 | E39: 0 | F39: 0 | G39: 0 | H39: 0 | I39: 0 | J39: 0 | K39: 0 | L39: 0 | M39: 0 | N39: 0 | O39: 0 | P39: 0 | Q39: 0 | R39: 0 | S39: 0 | T39: 0 | U39: 0 | V39: 0 | W39: 0 | X39: 0 | Y39: 0 | Z39: 0 | AA39: 0 | AB39: 0 | AC39: 0
B40: 2.15 | C40: Member Cost Sharing | D40: =D28/D33 -> 124.0683 | E40: 0 | F40: 0 | G40: 0 | H40: 0 | I40: 0 | J40: 0 | K40: 0 | L40: 0 | M40: 0 | N40: 0 | O40: 0 | P40: 0 | Q40: 0 | R40: 0 | S40: 0 | T40: 0 | U40: 0 | V40: 0 | W40: 0 | X40: 0 | Y40: 0 | Z40: 0 | AA40: 0 | AB40: 0 | AC40: 0
B41: 2.16 | C41: Cost Sharing Reduction | D41: =D29/D33 -> 0 | E41: 0 | F41: 0 | G41: 0 | H41: 0 | I41: 0 | J41: 0 | K41: 0 | L41: 0 | M41: 0 | N41: 0 | O41: 0 | P41: 0 | Q41: 0 | R41: 0 | S41: 0 | T41: 0 | U41: 0 | V41: 0 | W41: 0 | X41: 0 | Y41: 0 | Z41: 0 | AA41: 0 | AB41: 0 | AC41: 0
B42: 2.17 | C42: Incurred Claims | D42: =D30/D33 -> 514.0664 | E42: 0 | F42: 0 | G42: 0 | H42: 0 | I42: 0 | J42: 0 | K42: 0 | L42: 0 | M42: 0 | N42: 0 | O42: 0 | P42: 0 | Q42: 0 | R42: 0 | S42: 0 | T42: 0 | U42: 0 | V42: 0 | W42: 0 | X42: 0 | Y42: 0 | Z42: 0 | AA42: 0 | AB42: 0 | AC42: 0
B43: 2.18 | C43: Risk Adjustment Transfer Amount | D43: =D31/D33 -> -1.9988 | E43: 0 | F43: 0 | G43: 0 | H43: 0 | I43: 0 | J43: 0 | K43: 0 | L43: 0 | M43: 0 | N43: 0 | O43: 0 | P43: 0 | Q43: 0 | R43: 0 | S43: 0 | T43: 0 | U43: 0 | V43: 0 | W43: 0 | X43: 0 | Y43: 0 | Z43: 0 | AA43: 0 | AB43: 0 | AC43: 0
B44: 2.19 | C44: Premium | D44: =D32/D33 -> 594.4869 | E44: 0 | F44: 0 | G44: 0 | H44: 0 | I44: 0 | J44: 0 | K44: 0 | L44: 0 | M44: 0 | N44: 0 | O44: 0 | P44: 0 | Q44: 0 | R44: 0 | S44: 0 | T44: 0 | U44: 0 | V44: 0 | W44: 0 | X44: 0 | Y44: 0 | Z44: 0 | AA44: 0 | AB44: 0 | AC44: 0
C46: Section III: Plan Adjustment Factors
B47: 3.1 | C47: Plan ID (Standard Component ID) | E47: =E13 -> 0 | F47: 0 | G47: 0 | H47: 0 | I47: 0 | J47: 0 | K47: 0 | L47: 0 | M47: 0 | N47: 0 | O47: 0 | P47: 0 | Q47: 0 | R47: 0 | S47: 0 | T47: 0 | U47: 0 | V47: 0 | W47: 0 | X47: 0 | Y47: 0 | Z47: 0 | AA47: 0 | AB47: 0 | AC47: 0
B48: 3.2 | C48: Market Adjusted Index Rate | E48: ='Wksh 1 - Market Experience'!F46 -> 0
B49: 3.3 | C49: AV and Cost Sharing Design of Plan | E49: 0 | F49: 0 | G49: 0.8465779894 | H49: 0.682132661 | I49: 1.034637861 | J49: 0.883050855 | K49: 0 | L49: 0.8971017296 | M49: 1.109759107 | N49: 0.8636503945 | O49: 1.082568793 | P49: 1.079569685 | Q49: 0.8776556657 | R49: 0.989365378 | S49: 0 | T49: 0 | U49: 0 | V49: 0.6822995714 | W49: 0 | X49: 0.8972724156 | Y49: 1.109932092 | Z49: 0.8637340246 | AA49: 1.082741535 | AB49: 1.079742378 | AC49: 0.8778260584
B50: 3.4 | C50: Provider Network Adjustment | E50: 0 | F50: 0 | G50: 1 | H50: 1 | I50: 1 | J50: 1 | K50: 0 | L50: 1 | M50: 1 | N50: 1 | O50: 1 | P50: 1 | Q50: 1 | R50: 1 | S50: 0 | T50: 0 | U50: 0 | V50: 1 | W50: 0 | X50: 1 | Y50: 1 | Z50: 1 | AA50: 1 | AB50: 1 | AC50: 1
B51: 3.5 | C51: Benefits in Addition to EHB | E51: 0 | F51: 0 | G51: 1 | H51: 1 | I51: 1 | J51: 1 | K51: 0 | L51: 1 | M51: 1 | N51: 1 | O51: 1 | P51: 1 | Q51: 1 | R51: 1 | S51: 0 | T51: 0 | U51: 0 | V51: 1.007529513 | W51: 0 | X51: 1.005721349 | Y51: 1.004623083 | Z51: 1.005943448 | AA51: 1.004739406 | AB51: 1.004752791 | AC51: 1.005848642
C52: Administrative Costs
B53: 3.6 | C53: Administrative Expense | E53: 0 | F53: 0 | G53: 0.157648085 | H53: 0.1864698354 | I53: 0.1344109277 | J53: 0.1524866278 | K53: 0 | L53: 0.1505932278 | M53: 0.1270522213 | N53: 0.155186308 | O53: 0.1296130043 | P53: 0.1295799372 | Q53: 0.1528421495 | R53: 0.1393101363 | S53: 0 | T53: 0 | U53: 0 | V53: 0.1853656472 | W53: 0 | X53: 0.1498914756 | Y53: 0.1265653912 | Z53: 0.1553824783 | AA53: 0.1291046865 | AB53: 0.1290705179 | AC53: 0.1521158566
B54: 3.7 | C54: Taxes and Fees | E54: 0 | F54: 0 | G54: 0.01060323853 | H54: 0.01067455907 | I54: 0.01054573728 | J54: 0.0105904663 | K54: 0 | L54: 0.01058578101 | M54: 0.01052752787 | N54: 0.01059714677 | O54: 0.01053386463 | P54: 0.0105337828 | Q54: 0.01059134605 | R54: 0.01055786056 | S54: 0 | T54: 0 | U54: 0 | V54: 0.01067182672 | W54: 0 | X54: 0.0105840445 | Y54: 0.01052632319 | Z54: 0.0105976322 | AA54: 0.01053260678 | AB54: 0.01053252223 | AC54: 0.01058954881
B55: 3.8 | C55: Profit & Risk Load | E55: 0 | F55: 0 | G55: 0.05 | H55: 0.05 | I55: 0.05 | J55: 0.05 | K55: 0 | L55: 0.05 | M55: 0.05 | N55: 0.05 | O55: 0.05 | P55: 0.0525 | Q55: 0.0525 | R55: 0.05 | S55: 0 | T55: 0 | U55: 0 | V55: 0.05 | W55: 0 | X55: 0.05 | Y55: 0.05 | Z55: 0.044 | AA55: 0.05 | AB55: 0.0525 | AC55: 0.0525
B56: 3.9 | C56: Catastrophic Adjustment | E56: 0 | F56: 0 | G56: 1 | H56: 1 | I56: 1 | J56: 1 | K56: 0 | L56: 1 | M56: 1 | N56: 1 | O56: 1 | P56: 1 | Q56: 1 | R56: 1 | S56: 0 | T56: 0 | U56: 0 | V56: 1 | W56: 0 | X56: 1 | Y56: 1 | Z56: 1 | AA56: 1 | AB56: 1 | AC56: 1
B57: 3.10 | C57: Plan Adjusted Index Rate | E57: =($E$48*PRODUCT(E49:E51)*E56)/(1-SUM(E53:E55)) -> 0 | F57: 0 | G57: 0 | H57: 0 | I57: 0 | J57: 0 | K57: 0 | L57: 0 | M57: 0 | N57: 0 | O57: 0 | P57: 0 | Q57: 0 | R57: 0 | S57: 0 | T57: 0 | U57: 0 | V57: 0 | W57: 0 | X57: 0 | Y57: 0 | Z57: 0 | AA57: 0 | AB57: 0 | AC57: 0
B59: 3.11 | C59: Age Calibration Factor | D59: 0.5494607017 | E59: =IF(D59<>"", D59, "") -> 0
B60: 3.12 | C60: Geographic Calibration Factor | D60: 1 | E60: =IF(D60<>"", D60, "") -> 0
B61: 3.13 | C61: Tobacco Calibration Factor | D61: 0.9965133406 | E61: =IF(D61<>"", D61, "") -> 0
B62: 3.14 | C62: Calibrated Plan Adjusted Index Rate | E62: =E57*(PRODUCT($E$59:$E$61)) -> 0 | F62: 0 | G62: 0 | H62: 0 | I62: 0 | J62: 0 | K62: 0 | L62: 0 | M62: 0 | N62: 0 | O62: 0 | P62: 0 | Q62: 0 | R62: 0 | S62: 0 | T62: 0 | U62: 0 | V62: 0 | W62: 0 | X62: 0 | Y62: 0 | Z62: 0 | AA62: 0 | AB62: 0 | AC62: 0
C64: Section IV: Projected Plan Level Information
B65: 4.1 | C65: Plan ID (Standard Component ID) | D65: Total | E65: =E13 -> 0 | F65: 0 | G65: 0 | H65: 0 | I65: 0 | J65: 0 | K65: 0 | L65: 0 | M65: 0 | N65: 0 | O65: 0 | P65: 0 | Q65: 0 | R65: 0 | S65: 0 | T65: 0 | U65: 0 | V65: 0 | W65: 0 | X65: 0 | Y65: 0 | Z65: 0 | AA65: 0 | AB65: 0 | AC65: 0
B66: 4.2 | C66: Allowed Claims | D66: =SUM(E66:XFD66) -> 96918731.9 | E66: =0 -> 0 | F66: =0 -> 0 | G66: =15486149.914991 -> 0 | H66: =38342908.0709848 -> 0 | I66: =13337162.6038711 -> 0 | J66: =4388282.89026436 -> 0 | K66: =0 -> 0 | L66: =683690.18989285 -> 0 | M66: =215240.82130149 -> 0 | N66: =3419718.6905827 -> 0 | O66: =701350.024366281 -> 0 | P66: =214613.632576487 -> 0 | Q66: =684676.404200436 -> 0 | R66: =708102.794906125 -> 0 | S66: =0 -> 0 | T66: =0 -> 0 | U66: =0 -> 0 | V66: =14318136.0971885 -> 0 | W66: =0 -> 0 | X66: =755212.477058505 -> 0 | Y66: =282561.305406148 -> 0 | Z66: =2115911.43291477 -> 0 | AA66: =226976.7837519 -> 0 | AB66: =281741.535910812 -> 0 | AC66: =756296.229044864 -> 0
B67: 4.3 | C67: Reinsurance | D67: =SUM(E67:XFD67) -> 0 | E67: =0 -> 0 | F67: =0 -> 0 | G67: =0 -> 0 | H67: =0 -> 0 | I67: =0 -> 0 | J67: =0 -> 0 | K67: =0 -> 0 | L67: =0 -> 0 | M67: =0 -> 0 | N67: =0 -> 0 | O67: =0 -> 0 | P67: =0 -> 0 | Q67: =0 -> 0 | R67: =0 -> 0 | S67: =0 -> 0 | T67: =0 -> 0 | U67: =0 -> 0 | V67: =0 -> 0 | W67: =0 -> 0 | X67: =0 -> 0 | Y67: =0 -> 0 | Z67: =0 -> 0 | AA67: =0 -> 0 | AB67: =0 -> 0 | AC67: =0 -> 0
B68: 4.4 | C68: Member Cost Sharing | D68: =SUM(E68:XFD68) -> 20998921.29 | E68: =0 -> 0 | F68: =0 -> 0 | G68: =2483057.97428123 -> 0 | H68: =10809985.1016739 -> 0 | I68: =1724266.51448453 -> 0 | J68: =606403.503269828 -> 0 | K68: =0 -> 0 | L68: =84169.9260631082 -> 0 | M68: =18740.5110057608 -> 0 | N68: =467566.976841712 -> 0 | O68: =59511.6463890707 -> 0 | P68: =23476.8735583391 -> 0 | Q68: =98207.1342999194 -> 0 | R68: =46778.2865392583 -> 0 | S68: =0 -> 0 | T68: =0 -> 0 | U68: =0 -> 0 | V68: =4014216.41913513 -> 0 | W68: =0 -> 0 | X68: =92494.4242451737 -> 0 | Y68: =24494.8587834633 -> 0 | Z68: =287772.156530936 -> 0 | AA68: =19173.5168044094 -> 0 | AB68: =30685.5401281196 -> 0 | AC68: =107919.927802109 -> 0
B69: 4.5 | C69: Cost Sharing Reduction | D69: =SUM(E69:XFD69) -> 0 | E69: =0 -> 0 | F69: =0 -> 0 | G69: =0 -> 0 | H69: =0 -> 0 | I69: =0 -> 0 | J69: =0 -> 0 | K69: =0 -> 0 | L69: =0 -> 0 | M69: =0 -> 0 | N69: =0 -> 0 | O69: =0 -> 0 | P69: =0 -> 0 | Q69: =0 -> 0 | R69: =0 -> 0 | S69: =0 -> 0 | T69: =0 -> 0 | U69: =0 -> 0 | V69: =0 -> 0 | W69: =0 -> 0 | X69: =0 -> 0 | Y69: =0 -> 0 | Z69: =0 -> 0 | AA69: =0 -> 0 | AB69: =0 -> 0 | AC69: =0 -> 0
B70: 4.6 | C70: Incurred Claims | D70: =D66-D67-D68-D69 -> 75919810.61 | E70: 0 | F70: 0 | G70: 0 | H70: 0 | I70: 0 | J70: 0 | K70: 0 | L70: 0 | M70: 0 | N70: 0 | O70: 0 | P70: 0 | Q70: 0 | R70: 0 | S70: 0 | T70: 0 | U70: 0 | V70: 0 | W70: 0 | X70: 0 | Y70: 0 | Z70: 0 | AA70: 0 | AB70: 0 | AC70: 0
B71: 4.7 | C71: Risk Adjustment Transfer Amount | D71: =SUM(E71:XFD71) -> -1210168.516 | E71: =0 -> 0 | F71: =0 -> 0 | G71: =-204653.754840663 -> 0 | H71: =-450239.168771305 -> 0 | I71: =-177404.151729712 -> 0 | J71: =-59124.9496599352 -> 0 | K71: =0 -> 0 | L71: =-9349.84405956328 -> 0 | M71: =-2974.16295579783 -> 0 | N71: =-46314.9714529059 -> 0 | O71: =-9745.91261414992 -> 0 | P71: =-2911.29422218431 -> 0 | Q71: =-9202.63913670379 -> 0 | R71: =-10165.6745028649 -> 0 | S71: =0 -> 0 | T71: =0 -> 0 | U71: =0 -> 0 | V71: =-168246.066669356 -> 0 | W71: =0 -> 0 | X71: =-10326.0952265443 -> 0 | Y71: =-3903.62692945938 -> 0 | Z71: =-28466.8842504488 -> 0 | AA71: =-3153.34780468268 -> 0 | AB71: =-3821.49845547587 -> 0 | AC71: =-10164.472375396 -> 0
B72: 4.8 | C72: Premium | D72: =SUM(E72:XFD72) -> 99905104.05 | E72: =0 -> 0 | F72: =0 -> 0 | G72: =16895130.2292234 -> 0 | H72: =37169361.474022 -> 0 | I72: =14645547.3001801 -> 0 | J72: =4881042.74010811 -> 0 | K72: =0 -> 0 | L72: =771873.612249335 -> 0 | M72: =245531.143566159 -> 0 | N72: =3823518.77623177 -> 0 | O72: =804570.934683763 -> 0 | P72: =240341.033848534 -> 0 | Q72: =759721.153360759 -> 0 | R72: =839224.253312715 -> 0 | S72: =0 -> 0 | T72: =0 -> 0 | U72: =0 -> 0 | V72: =13889504.2954207 -> 0 | W72: =0 -> 0 | X72: =852467.738731001 -> 0 | Y72: =322262.767134998 -> 0 | Z72: =2350075.21365056 -> 0 | AA72: =260323.695793555 -> 0 | AB72: =315482.675244873 -> 0 | AC72: =839125.0120349 -> 0
B73: 4.9 | C73: Projected Member Months | D73: =SUM(E73:XFD73) -> 132576 | E73: =0 -> 0 | F73: =0 -> 0 | G73: =21027 -> 0 | H73: =55291 -> 0 | I73: =15359 -> 0 | J73: =5863 -> 0 | K73: =0 -> 0 | L73: =915 -> 0 | M73: =242 -> 0 | N73: =4679 -> 0 | O73: =811 -> 0 | P73: =242 -> 0 | Q73: =915 -> 0 | R73: =915 -> 0 | S73: =0 -> 0 | T73: =0 -> 0 | U73: =0 -> 0 | V73: =20532 -> 0 | W73: =0 -> 0 | X73: =1005 -> 0 | Y73: =317 -> 0 | Z73: =2880 -> 0 | AA73: =261 -> 0 | AB73: =317 -> 0 | AC73: =1005 -> 0
B74: 4.10 | C74: Loss Ratio | D74: =D70/(D71+D72) -> 0.7692371467 | E74: 0 | F74: 0 | G74: 0 | H74: 0 | I74: 0 | J74: 0 | K74: 0 | L74: 0 | M74: 0 | N74: 0 | O74: 0 | P74: 0 | Q74: 0 | R74: 0 | S74: 0 | T74: 0 | U74: 0 | V74: 0 | W74: 0 | X74: 0 | Y74: 0 | Z74: 0 | AA74: 0 | AB74: 0 | AC74: 0
C75: Per Member Per Month
B76: 4.11 | C76: Allowed Claims | D76: =D66/D73 -> 731.0428 | E76: 0 | F76: 0 | G76: 0 | H76: 0 | I76: 0 | J76: 0 | K76: 0 | L76: 0 | M76: 0 | N76: 0 | O76: 0 | P76: 0 | Q76: 0 | R76: 0 | S76: 0 | T76: 0 | U76: 0 | V76: 0 | W76: 0 | X76: 0 | Y76: 0 | Z76: 0 | AA76: 0 | AB76: 0 | AC76: 0
B77: 4.12 | C77: Reinsurance | D77: =D67/D73 -> 0 | E77: 0 | F77: 0 | G77: 0 | H77: 0 | I77: 0 | J77: 0 | K77: 0 | L77: 0 | M77: 0 | N77: 0 | O77: 0 | P77: 0 | Q77: 0 | R77: 0 | S77: 0 | T77: 0 | U77: 0 | V77: 0 | W77: 0 | X77: 0 | Y77: 0 | Z77: 0 | AA77: 0 | AB77: 0 | AC77: 0
B78: 4.13 | C78: Member Cost Sharing | D78: =D68/D73 -> 158.3916 | E78: 0 | F78: 0 | G78: 0 | H78: 0 | I78: 0 | J78: 0 | K78: 0 | L78: 0 | M78: 0 | N78: 0 | O78: 0 | P78: 0 | Q78: 0 | R78: 0 | S78: 0 | T78: 0 | U78: 0 | V78: 0 | W78: 0 | X78: 0 | Y78: 0 | Z78: 0 | AA78: 0 | AB78: 0 | AC78: 0
B79: 4.14 | C79: Cost Sharing Reduction | D79: =D69/D73 -> 0 | E79: 0 | F79: 0 | G79: 0 | H79: 0 | I79: 0 | J79: 0 | K79: 0 | L79: 0 | M79: 0 | N79: 0 | O79: 0 | P79: 0 | Q79: 0 | R79: 0 | S79: 0 | T79: 0 | U79: 0 | V79: 0 | W79: 0 | X79: 0 | Y79: 0 | Z79: 0 | AA79: 0 | AB79: 0 | AC79: 0
B80: 4.15 | C80: Incurred Claims | D80: =D70/D73 -> 572.6512 | E80: 0 | F80: 0 | G80: 0 | H80: 0 | I80: 0 | J80: 0 | K80: 0 | L80: 0 | M80: 0 | N80: 0 | O80: 0 | P80: 0 | Q80: 0 | R80: 0 | S80: 0 | T80: 0 | U80: 0 | V80: 0 | W80: 0 | X80: 0 | Y80: 0 | Z80: 0 | AA80: 0 | AB80: 0 | AC80: 0
B81: 4.16 | C81: Risk Adjustment Transfer Amount | D81: =D71/D73 -> -9.1281 | E81: 0 | F81: 0 | G81: 0 | H81: 0 | I81: 0 | J81: 0 | K81: 0 | L81: 0 | M81: 0 | N81: 0 | O81: 0 | P81: 0 | Q81: 0 | R81: 0 | S81: 0 | T81: 0 | U81: 0 | V81: 0 | W81: 0 | X81: 0 | Y81: 0 | Z81: 0 | AA81: 0 | AB81: 0 | AC81: 0
B82: 4.17 | C82: Premium | D82: =D72/D73 -> 753.5685 | E82: 0 | F82: 0 | G82: 0 | H82: 0 | I82: 0 | J82: 0 | K82: 0 | L82: 0 | M82: 0 | N82: 0 | O82: 0 | P82: 0 | Q82: 0 | R82: 0 | S82: 0 | T82: 0 | U82: 0 | V82: 0 | W82: 0 | X82: 0 | Y82: 0 | Z82: 0 | AA82: 0 | AB82: 0 | AC82: 0

Sheet Wksh 3 - Rating Areas
A1: Rating Area Data Collection [assistive technology users, please reference cell A2 for instructions] | C1: Specify the total number of Rating Areas in your State by selecting the Create Rating Areas button or Ctrl + Shift + R.
A2: Press TAB and directional arrow keys to read through the document. If macros are disabled, press and hold the ALT key and press the F, then I, and then N key. After that, select the Enable All Content option by pressing enter. (note that you can also press the C key to select "Enable All Content") Instructions can be found in cells C1 through C4. If screen reader fails to announce a cell after performing a dropdown selection, please press F2 and then ESC to force the screen reader to resume. | C2: Select only the Rating Areas you are offering plans within and add a factor for each area.
C3: To validate, select the Validate button or Ctrl + Shift + I.
C4: To finalize, select the Finalize button or Ctrl + Shift + F.
A5: Rating Area | B5: Rating Factor
A6: Rating Area 1 | B6: 1.007
A7: Rating Area 2 | B7: 0.962
A8: Rating Area 3 | B8: 0.991
A9: Rating Area 4 | B9: 0.977
A10: Rating Area 5 | B10: 0.998
A11: Rating Area 6 | B11: 1.283
A12: Rating Area 7 | B12: 0.989
A13: Rating Area 8 | B13: 0.958

Sheet PlanTemplate (hidden)
A1: REBUILD | C1: Product-Plan Data Collection
C3: Company Legal Name: | D3: =IF('Wksh 1 - Market Experience'!C3<>"", 'Wksh 1 - Market Experience'!C3,"") ->  | N3: State: | O3: =IF('Wksh 1 - Market Experience'!E4="","",'Wksh 1 - Market Experience'!E4) -> 
C4: HIOS Issuer ID: | D4: =IF('Wksh 1 - Market Experience'!C4<>"", 'Wksh 1 - Market Experience'!C4,"") ->  | N4: Market: | O4: =IF('Wksh 1 - Market Experience'!E5="","",'Wksh 1 - Market Experience'!E5) -> 
C5: Effective Date of Rate Change(s): | D5: =IF('Wksh 1 - Market Experience'!#REF!<>"", 'Wksh 1 - Market Experience'!#REF!,"") -> 
C7: Product/Plan Level Calculations
B9: Field # | C9: Section I: General Product and Plan Information
B10: 1.1 | C10: Product Name | K10: Rating Area 1 | L10: AL | M10: New | N10: Platinum | O10: Yes
B11: 1.2 | C11: Product ID | K11: Rating Area 2 | L11: AK | M11: Renewing | N11: Gold | O11: No
B12: 1.3 | C12: Plan Name | K12: Rating Area 3 | L12: AZ | M12: Terminated | N12: Silver
B13: 1.4 | C13: Plan ID (Standard Component ID) | K13: Rating Area 4 | L13: AR | N13: Bronze
B14: 1.5 | C14: Metal | K14: Rating Area 5 | L14: CA | N14: Catastrophic
B15: 1.6 | C15: AV Metal Value | K15: Rating Area 6 | L15: CO | N15: Not Applicable
B16: 1.7 | C16: Plan Category | K16: Rating Area 7 | L16: CT
B17: 1.8 | C17: Plan Type | K17: Rating Area 8 | L17: DC
B18: 1.9 | C18: Exchange Plan? | L18: DE
B19: 1.10 | C19: Effective Date of Proposed Rates | L19: FL
B20: 1.11 | C20: Cumulative Rate Change % (over 12 mos prior) | L20: GA
B21: 1.12 | C21: Product Rate Increase % | L21: HI
B22: 1.13 | C22: Submission Level Rate Increase % | L22: ID
L23: IL
C24: Section II: Experience Period and Current Plan Level Information | L24: IN
B25: 2.1 | C25: Plan ID (Standard Component ID) | D25: Total | E25: =IF(E13<>"",E13,"") ->  | L25: IA
B26: 2.2 | C26: Allowed Claims | D26: =SUM(E26:XFD26) -> 0 | L26: KS
B27: 2.3 | C27: Reinsurance | D27: =SUM(E27:XFD27) -> 0 | L27: KY
B28: 2.4 | C28: Member Cost Sharing | D28: =SUM(E28:XFD28) -> 0 | L28: LA
B29: 2.5 | C29: Cost Sharing Reduction | D29: =SUM(E29:XFD29) -> 0 | L29: ME
B30: 2.6 | C30: Incurred Claims | D30: =D26-D27-D28-D29 -> 0 | E30: =E26-E27-E28-E29 -> 0 | L30: MD
B31: 2.7 | C31: Risk Adjustment Transfer Amount | D31: =SUM(E31:XFD31) -> 0 | L31: MA
B32: 2.8 | C32: Premium | D32: =SUM(E32:XFD32) -> 0 | L32: MI
B33: 2.9 | C33: Experience Period Member Months | D33: =SUM(E33:XFD33) -> 0 | L33: MN
B34: 2.10 | C34: Current Enrollment | D34: =SUM(E34:XFD34) -> 0 | L34: MS
B35: 2.11 | C35: Current Premium PMPM | D35: =SUMPRODUCT(E35:XFD35,E34:XFD34)/D34 ->  | L35: MO
B36: 2.12 | C36: Loss Ratio | D36: =D30/(D31+D32) ->  | E36: =E30/(E31+E32) ->  | L36: MT
C37: Per Member Per Month | L37: NE
B38: 2.13 | C38: Allowed Claims | D38: =D26/D33 ->  | E38: =E26/E33 ->  | L38: NV
B39: 2.14 | C39: Reinsurance | D39: =D27/D33 ->  | E39: =E27/E33 ->  | L39: NH
B40: 2.15 | C40: Member Cost Sharing | D40: =D28/D33 ->  | E40: =E28/E33 ->  | L40: NJ
B41: 2.16 | C41: Cost Sharing Reduction | D41: =D29/D33 ->  | E41: =E29/E33 ->  | L41: NM
B42: 2.17 | C42: Incurred Claims | D42: =D30/D33 ->  | E42: =E30/E33 ->  | L42: NY
B43: 2.18 | C43: Risk Adjustment Transfer Amount | D43: =D31/D33 ->  | E43: =E31/E33 ->  | L43: NC
B44: 2.19 | C44: Premium | D44: =D32/D33 ->  | E44: =E32/E33 ->  | L44: ND
L45: OH
C46: Section III: Plan Adjustment Factors | L46: OK
B47: 3.1 | C47: Plan ID (Standard Component ID) | E47: =IF(E13<>"",E13,"") ->  | L47: OR
B48: 3.2 | C48: Market Adjusted Index Rate | E48: ='Wksh 1 - Market Experience'!F46 -> 0 | L48: PA
B49: 3.3 | C49: AV and Cost Sharing Design of Plan | L49: RI
B50: 3.4 | C50: Provider Network Adjustment | L50: SC
B51: 3.5 | C51: Benefits in Addition to EHB | L51: SD
C52: Administrative Costs | L52: TN
B53: 3.6 | C53: Administrative Expense | L53: TX
B54: 3.7 | C54: Taxes and Fees | L54: UT
B55: 3.8 | C55: Profit & Risk Load | L55: VT
B56: 3.9 | C56: Catastrophic Adjustment | L56: VA
B57: 3.10 | C57: Plan Adjusted Index Rate | E57: =($E$48*PRODUCT(E49:E51)*E56)/(1-SUM(E53:E55)) -> 0 | L57: WA
L58: WV
B59: 3.11 | C59: Age Calibration Factor | E59: =IF(D59<>"", D59, "") ->  | L59: WI
B60: 3.12 | C60: Geographic Calibration Factor | E60: =IF(D60<>"", D60, "") ->  | L60: WY
B61: 3.13 | C61: Tobacco Calibration Factor | E61: =IF(D61<>"", D61, "") -> 
B62: 3.14 | C62: Calibrated Plan Adjusted Index Rate | E62: =E57*(PRODUCT($E$59:$E$61)) -> 0
C64: Section IV: Projected Plan Level Information
B65: 4.1 | C65: Plan ID (Standard Component ID) | D65: Total | E65: =IF(E13<>"",E13,"") -> 
B66: 4.2 | C66: Allowed Claims | D66: =SUM(E66:XFD66) -> 0
B67: 4.3 | C67: Reinsurance | D67: =SUM(E67:XFD67) -> 0
B68: 4.4 | C68: Member Cost Sharing | D68: =SUM(E68:XFD68) -> 0
B69: 4.5 | C69: Cost Sharing Reduction | D69: =SUM(E69:XFD69) -> 0
B70: 4.6 | C70: Incurred Claims | D70: =D66-D67-D68-D69 -> 0 | E70: =E66-E67-E68-E69 -> 0
B71: 4.7 | C71: Risk Adjustment Transfer Amount | D71: =SUM(E71:XFD71) -> 0
B72: 4.8 | C72: Premium | D72: =SUM(E72:XFD72) -> 0
B73: 4.9 | C73: Projected Member Months | D73: =SUM(E73:XFD73) -> 0
B74: 4.10 | C74: Loss Ratio | D74: =D70/(D71+D72) ->  | E74: =E70/(E71+E72) -> 
C75: Per Member Per Month
B76: 4.11 | C76: Allowed Claims | D76: =D66/D73 ->  | E76: =E66/E73 -> 
B77: 4.12 | C77: Reinsurance | D77: =D67/D73 ->  | E77: =E67/E73 -> 
B78: 4.13 | C78: Member Cost Sharing | D78: =D68/D73 ->  | E78: =E68/E73 -> 
B79: 4.14 | C79: Cost Sharing Reduction | D79: =D69/D73 ->  | E79: =E69/E73 -> 
B80: 4.15 | C80: Incurred Claims | D80: =D70/D73 ->  | E80: =E70/E73 -> 
B81: 4.16 | C81: Risk Adjustment Transfer Amount | D81: =D71/D73 ->  | E81: =E71/E73 -> 
B82: 4.17 | C82: Premium | D82: =D72/D73 ->  | E82: =E72/E73 -> 
